[Event "European Womens-ch 2025"]
[Site "Rhodes"]
[Date "2025.04.02"]
[Round "3.38"]
[White "Huseynova, Lala"]
[Black "Rudzinska, Michalina"]
[Result "1-0"]
[Annotator "RC"]
[ECO "B15"]
[WhiteElo "2065"]
[BlackElo "2223"]
[PlyCount "171"]
[EventDate "2025.03.29"]
[EventType "swiss"]
[EventCountry "GRE"]
[SourceTitle "playchess.com"]
[Source "ChessBase"]
[SourceQuality "1"]
[TimeControl "40/5400+30:1800+30"]

1. e4 {[%emt 0:00:01]} c6 {[%emt 0:01:04]} 2. d4 {[%emt 0:00:02]} d5 {[%emt 0:00:11]} 3. Nc3 {[%emt 0:00:04]} dxe4 {[%emt 0:00:07]} 4. Nxe4 {[%emt 0:00:04]} Nf6 {[%emt 0:00:18]} 5. Nxf6+ {[%emt 0:00:09]} exf6 {[%emt 0:00:05]} 6. Be3 {[%emt 0:00:06]} Bd6 {[%emt 0:00:47]} 7. Bd3 {[%emt 0:00:07]} Na6 {[%emt 0:00:46]} 8. a3 {[%emt 0:00:08]} O-O {[%emt 0:00:21]} 9. Ne2 {[%emt 0:01:09]} Nc7 {[%emt 0:00:36]} 10. c4 {[%emt 0:00:17]} Re8 {[%emt 0:01:21]} 11. O-O {[%emt 0:01:05]} f5 {[%emt 0:00:56]} 12. Qd2 {[%emt 0:08:01]} h6 {[%emt 0:00:33]} 13. g3 {[%emt 1:25:47]} Qf6 {[%emt 0:03:38]} 14. Nc3 {[%emt 0:00:00]} Be6 {[%emt 0:15:04]} 15. f4 {[%emt 0:00:00]} Rad8 {[%emt 0:07:46]} 16. b3 {[%emt 0:00:00]} g6 {[%emt 0:01:08]} 17. Rfe1 {[%emt 0:00:00]} Be7 {[%emt 0:05:26]} 18. Ne2 {[%emt 0:00:00]} Qg7 {[%emt 0:04:00]} 19. Qa5 {[%emt 0:00:00]} Na6 {[%emt 0:03:25]} 20. Rad1 {[%emt 0:00:00]} Bf6 {[%emt 0:06:50]} 21. Bf2 {[%emt 0:00:00]} Rd7 {[%emt 0:04:39]} 22. b4 {[%emt 0:00:00]} Red8 {[%emt 0:23:20]} 23. b5 {[%emt 0:00:00]} cxb5 {[%emt 0:03:45]} 24. cxb5 {[%emt 0:00:00]} Nc7 {[%emt 0:00:34]} 25. Qxa7 {[%emt 0:00:00]} Bd5 {[%emt 0:02:23]} 26. Rc1 {[%emt 0:00:00]} Ra8 {[%emt 0:05:24]} 27. Qb6 {[%emt 0:00:00]} Ne6 {[%emt 0:00:18]} 28. Nc3 {[%emt 0:00:00]} Bd8 {[%emt 0:03:14]} 29. Nxd5 {[%emt 0:00:00]} Bxb6 {[%emt 0:00:13]} 30. Nxb6 {[%emt 0:00:00]} Rad8 {[%emt 0:04:33]} 31. Nxd7 {[%emt 0:00:00]} Rxd7 {[%emt 0:00:04]} 32. Rc8+ {[%emt 0:00:00]} Kh7 {[%emt 0:00:10]} 33. d5 {[%emt 0:00:00]} Nd4 {[%emt 0:01:46]} 34. Ree8 {[%emt 0:00:00]} Rxd5 {[%emt 0:00:18]} 35. Bc4 {[%emt 0:00:34]} Rd7 {[%emt 0:00:25]} 36. Red8 {[%emt 0:09:48]} Rxd8 {[%emt 0:00:41]} 37. Rxd8 {[%emt 0:00:00]} Nf3+ {[%emt 0:02:05]} 38. Kg2 {[%emt 0:00:22]} Qc3 {[%emt 0:00:14]} 39. Be2 {[%emt 0:01:40]} Ne1+ {[%emt 0:00:43]} 40. Kf1 {[%emt 0:00:00]} Nc2 {[%emt 0:00:00]} 41. Rd7 {[%emt 0:04:08]} Qb3 {[%emt 0:01:48]} 42. Rxb7 {[%emt 0:27:58]} Qd5 {[%emt 0:03:33]} 43. Re7 {[%emt 0:00:00]} Qh1+ {[%emt 0:03:06]} 44. Bg1 {[%emt 0:00:00]} Ne1 {[%emt 0:00:54]} 45. Re3 {[%emt 0:00:00]} g5 {[%emt 0:03:11]} 46. a4 {[%emt 0:00:00]} gxf4 {[%emt 0:03:35]} 47. gxf4 {[%emt 0:00:00]} Qg2+ {[%emt 0:00:30]} 48. Kxe1 {[%emt 0:00:00]} Qxg1+ {[%emt 0:05:35]} 49. Kd2 {[%emt 0:00:00]} Qxh2 {[%emt 0:00:30]} 50. Rf3 {[%emt 0:00:00]} Qg1 {[%emt 0:00:30]} 51. Rb3 {[%emt 0:00:00]} Qd4+ {[%emt 0:00:00]} 52. Kc2 {[%emt 0:01:46]} Qf2 {[%emt 0:14:07]} 53. Kd1 {[%emt 0:01:26]} Qxf4 {[%emt 0:00:00]} 54. b6 {[%emt 0:01:13]} Qxa4 {[%emt 0:00:00]} 55. Kc2 {[%emt 0:00:03]} Qc6+ {[%emt 0:00:00]} 56. Kb1 {[%emt 0:01:08]} Qh1+ {[%emt 0:00:00]} 57. Kc2 {[%emt 0:00:41]} Qc6+ {[%emt 0:00:53]} 58. Kb1 {[%emt 0:00:05]} Qe6 {[%emt 0:00:25]} 59. Bd1 {[%emt 0:00:24]} Qe1 {[%emt 0:01:30]} 60. Kc1 {[%emt 0:00:20]} Qe5 {[%emt 0:00:38]} 61. b7 {[%emt 0:00:20]} Qb8 {[%emt 0:00:19]} 62. Bf3 {[%emt 0:00:24]} Kg6 {[%emt 0:00:37]} 63. Rc3 {[%emt 0:01:25]} Qf4+ {[%emt 0:00:29]} 64. Kc2 {[%emt 0:00:11]} Kg5 {[%emt 0:01:09]} 65. Rc8 {[%emt 0:00:33]} Qa4+ {[%emt 0:00:00]} 66. Kd3 {[%emt 0:00:57]} Qb5+ 67. Kd4 {[%emt 0:00:30]} Qb6+ 68. Kc4 {[%emt 0:00:30]} Qa6+ 69. Kc5 {[%emt 0:00:30]} Qa3+ {[%emt 0:01:42]} 70. Kb6 {[%emt 0:00:30]} Qb3+ {[%emt 0:01:18]} 71. Kc5 {[%emt 0:00:26]} Qa3+ {[%emt 0:00:30]} 72. Kc4 {[%emt 0:00:25]} Qa6+ {[%emt 0:00:30]} 73. Kd4 {[%emt 0:00:18]} Qb6+ {[%emt 0:00:00]} 74. Kd3 {[%emt 0:00:20]} Qb5+ {[%emt 0:00:26]} 75. Kd2 {[%emt 0:00:19]} Qb4+ {[%emt 0:00:30]} 76. Ke2 {[%emt 0:00:30]} Qb2+ {[%emt 0:01:04]} 77. Kf1 Qb1+ {[%emt 0:00:00]} 78. Kg2 {[%emt 0:00:23]} Qb2+ {[%emt 0:00:24]} 79. Kh3 {[%emt 0:00:09]} Qf2 {[%emt 0:00:27]} 80. b8=Q {[%emt 0:00:43]} Qxf3+ {[%emt 0:00:30]} 81. Qg3+ {[%emt 0:00:30]} Qg4+ {[%emt 0:00:05]} 82. Qxg4+ {[%emt 0:00:30]} fxg4+ {[%emt 0:00:30]} 83. Kg3 {[%emt 0:00:45]} Kh5 {[%emt 0:00:00]} 84. Rg8 {[%emt 0:00:21]} f5 {[%emt 0:00:00]} 85. Kf4 {[%emt 0:00:05]} g3 {[%emt 0:00:00]} 86. Rxg3 {[%emt 0:00:08]} 1-0

[Event "European Womens-ch 2025"]
[Site "Rhodes"]
[Date "2025.04.02"]
[Round "3.39"]
[White "Velikic, Adela"]
[Black "Acarbay, Algi"]
[Result "1-0"]
[Annotator "RC"]
[ECO "D12"]
[WhiteElo "2214"]
[BlackElo "2052"]
[PlyCount "119"]
[EventDate "2025.03.29"]
[EventType "swiss"]
[EventCountry "GRE"]
[SourceTitle "playchess.com"]
[Source "ChessBase"]
[SourceQuality "1"]
[TimeControl "40/5400+30:1800+30"]

1. d4 {[%emt 0:00:03]} d5 {[%emt 0:00:16]} 2. c4 {[%emt 0:00:07]} c6 {[%emt 0:00:12]} 3. Nf3 {[%emt 0:00:08]} Nf6 {[%emt 0:00:15]} 4. e3 {[%emt 0:00:07]} Bf5 {[%emt 0:00:31]} 5. Nc3 {[%emt 0:00:10]} e6 {[%emt 0:00:18]} 6. Nh4 {[%emt 0:00:09]} Bg6 {[%emt 0:00:45]} 7. Qb3 {[%emt 0:01:24]} Qc7 {[%emt 0:01:28]} 8. Nxg6 {[%emt 0:21:46]} hxg6 {[%emt 0:00:08]} 9. g3 {[%emt 0:00:22]} Nbd7 {[%emt 0:01:49]} 10. Bg2 {[%emt 0:10:32]} Nb6 {[%emt 0:04:09]} 11. cxd5 {[%emt 0:15:12]} exd5 {[%emt 0:00:16]} 12. Qc2 {[%emt 0:02:08]} Bd6 {[%emt 0:11:30]} 13. b3 {[%emt 0:01:27]} O-O {[%emt 0:16:48]} 14. O-O {[%emt 0:00:49]} Rfe8 {[%emt 0:00:39]} 15. Bd2 {[%emt 0:03:52]} Re7 {[%emt 0:12:12]} 16. Rad1 {[%emt 0:10:45]} Rae8 {[%emt 0:07:07]} 17. f3 {[%emt 0:13:47]} Bb4 {[%emt 0:14:54]} 18. Bc1 {[%emt 0:00:22]} Nc8 {[%emt 0:02:32]} 19. a3 {[%emt 0:01:20]} Bxc3 {[%emt 0:04:59]} 20. Qxc3 {[%emt 0:00:05]} Nd6 {[%emt 0:00:14]} 21. Rfe1 {[%emt 0:01:14]} Qd7 {[%emt 0:03:38]} 22. a4 {[%emt 0:15:41]} Nf5 {[%emt 0:00:47]} 23. Qd3 {[%emt 0:00:00]} Qd8 {[%emt 0:11:25]} 24. Bh3 {[%emt 0:00:00]} Nd6 {[%emt 0:00:27]} 25. Ba3 {[%emt 0:00:00]} g5 {[%emt 0:01:52]} 26. g4 {[%emt 0:00:00]} g6 {[%emt 0:02:34]} 27. Bg2 {[%emt 0:00:00]} Re6 {[%emt 0:00:23]} 28. Re2 {[%emt 0:00:00]} Qb6 {[%emt 0:01:05]} 29. Rde1 {[%emt 0:00:00]} a6 {[%emt 0:00:35]} 30. h3 {[%emt 0:00:44]} Nc8 {[%emt 0:00:44]} 31. Bc5 {[%emt 0:01:56]} Qc7 {[%emt 0:00:06]} 32. e4 {[%emt 0:01:01]} Qg3 {[%emt 0:00:23]} 33. e5 {[%emt 0:01:16]} Nd7 {[%emt 0:00:47]} 34. Bb4 {[%emt 0:00:29]} Kg7 {[%emt 0:00:46]} 35. Bd2 {[%emt 0:00:30]} Rh8 {[%emt 0:00:18]} 36. Bxg5 {[%emt 0:00:27]} Rxh3 {[%emt 0:00:17]} 37. Bf4 {[%emt 0:00:32]} Qxf4 {[%emt 0:00:42]} 38. Bxh3 {[%emt 0:00:03]} Qg3+ {[%emt 0:00:08]} 39. Bg2 {[%emt 0:00:09]} Ne7 {[%emt 0:00:39]} 40. Qe3 {[%emt 0:00:00]} Qh4 {[%emt 0:00:00]} 41. Bh1 {[%emt 0:20:02]} g5 {[%emt 0:04:09]} 42. Rh2 {[%emt 0:04:22]} Qg3+ {[%emt 0:00:12]} 43. Bg2 {[%emt 0:02:41]} Ng6 {[%emt 0:01:05]} 44. Rh3 {[%emt 0:01:16]} Qf4 {[%emt 0:00:43]} 45. Rh5 {[%emt 0:01:00]} Qxe3+ {[%emt 0:11:20]} 46. Rxe3 {[%emt 0:00:04]} Nf4 {[%emt 0:00:35]} 47. Rxg5+ {[%emt 0:01:03]} Rg6 {[%emt 0:00:29]} 48. Rf5 {[%emt 0:01:58]} Ne6 {[%emt 0:00:16]} 49. Rd3 {[%emt 0:00:35]} a5 {[%emt 0:08:55]} 50. Kf2 {[%emt 0:00:51]} Nb8 {[%emt 0:00:18]} 51. Bh3 {[%emt 0:01:23]} Rh6 {[%emt 0:03:51]} 52. Kg3 {[%emt 0:00:40]} Na6 {[%emt 0:00:22]} 53. f4 {[%emt 0:01:08]} Nb4 {[%emt 0:02:05]} 54. Rd2 {[%emt 0:00:14]} c5 {[%emt 0:02:43]} 55. dxc5 {[%emt 0:00:36]} Nxc5 {[%emt 0:00:02]} 56. Bg2 {[%emt 0:00:21]} Nxb3 {[%emt 0:00:15]} 57. Rxd5 {[%emt 0:00:30]} Nxd5 {[%emt 0:00:42]} 58. Bxd5 {[%emt 0:00:04]} Nc5 {[%emt 0:00:38]} 59. Rxf7+ {[%emt 0:00:11]} Kh8 {[%emt 0:00:06]} 60. Rf8+ {[%emt 0:00:12]} 1-0

[Event "European Womens-ch 2025"]
[Site "Rhodes"]
[Date "2025.04.02"]
[Round "3.40"]
[White "Bochnickova, Andrea"]
[Black "Lehaci, Miruna-Daria"]
[Result "0-1"]
[Annotator "RC"]
[ECO "E32"]
[WhiteElo "2051"]
[BlackElo "2212"]
[PlyCount "60"]
[EventDate "2025.03.29"]
[EventType "swiss"]
[EventCountry "GRE"]
[SourceTitle "playchess.com"]
[Source "ChessBase"]
[SourceQuality "1"]
[TimeControl "40/5400+30:1800+30"]

1. d4 {[%emt 0:00:07]} e6 {[%emt 0:00:23]} 2. c4 {[%emt 0:00:20]} Nf6 {[%emt 0:00:07]} 3. Nc3 {[%emt 0:00:23]} Bb4 {[%emt 0:00:11]} 4. Qc2 {[%emt 0:00:27]} O-O {[%emt 0:00:55]} 5. e4 {[%emt 0:02:36]} d5 {[%emt 0:00:56]} 6. e5 {[%emt 0:01:20]} Ne4 {[%emt 0:01:09]} 7. a3 {[%emt 0:05:19]} Bxc3+ {[%emt 0:04:59]} 8. bxc3 {[%emt 0:00:16]} c5 {[%emt 0:02:17]} 9. Nf3 {[%emt 0:05:14]} Qa5 {[%emt 0:06:24]} 10. Bd2 {[%emt 0:04:19]} Nxd2 {[%emt 0:07:37]} 11. Qxd2 {[%emt 0:02:21]} Rd8 {[%emt 0:02:25]} 12. cxd5 {[%emt 0:03:06]} cxd4 {[%emt 0:04:15]} 13. cxd4 {[%emt 0:08:44]} Qxd5 {[%emt 0:01:31]} 14. Be2 {[%emt 0:00:48]} Bd7 {[%emt 0:02:33]} 15. O-O {[%emt 0:03:11]} Bb5 {[%emt 0:05:36]} 16. Bxb5 {[%emt 0:01:45]} Qxb5 {[%emt 0:00:04]} 17. Qf4 {[%emt 0:05:18]} h6 {[%emt 0:01:56]} 18. g4 {[%emt 0:05:46]} Nc6 {[%emt 0:06:50]} 19. Rab1 {[%emt 0:03:35]} Qd5 {[%emt 0:00:45]} 20. Rfd1 {[%emt 0:05:33]} Ne7 {[%emt 0:01:29]} 21. h4 {[%emt 0:02:37]} Rac8 {[%emt 0:02:12]} 22. Rd3 {[%emt 0:03:19]} Rc2 {[%emt 0:02:01]} 23. Nd2 {[%emt 0:07:05]} Ng6 {[%emt 0:03:17]} 24. Qg3 {[%emt 0:09:23]} Nxe5 {[%emt 0:02:56]} 25. Re3 {[%emt 0:00:31]} Nxg4 {[%emt 0:10:32]} 26. Qxg4 {[%emt 0:00:46]} Rxd2 {[%emt 0:00:06]} 27. h5 {[%emt 0:05:12]} Rxd4 {[%emt 0:00:58]} 28. Qh3 {[%emt 0:00:18]} Rd1+ {[%emt 0:01:14]} 29. Rxd1 {[%emt 0:00:16]} Qxd1+ {[%emt 0:00:05]} 30. Kh2 {[%emt 0:00:37]} Rd5 {[%emt 0:00:42]} 0-1

[Event "European Womens-ch 2025"]
[Site "Rhodes"]
[Date "2025.04.02"]
[Round "3.41"]
[White "Mgeladze, Kesaria"]
[Black "Zvereva, Marija"]
[Result "1-0"]
[Annotator "RC"]
[ECO "B07"]
[WhiteElo "2200"]
[BlackElo "2033"]
[PlyCount "61"]
[EventDate "2025.03.29"]
[EventType "swiss"]
[EventCountry "GRE"]
[SourceTitle "playchess.com"]
[Source "ChessBase"]
[SourceQuality "1"]
[TimeControl "40/5400+30:1800+30"]

1. e4 {[%emt 0:00:04]} d6 {[%emt 0:05:18]} 2. d4 {[%emt 0:00:32]} Nf6 {[%emt 0:00:15]} 3. Nc3 {[%emt 0:00:13]} g6 {[%emt 0:00:14]} 4. f3 {[%emt 0:01:11]} Bg7 {[%emt 0:00:59]} 5. Be3 {[%emt 0:00:08]} Nbd7 {[%emt 0:00:51]} 6. Qd2 {[%emt 0:01:14]} c6 {[%emt 0:01:27]} 7. Bh6 {[%emt 0:13:06]} Bxh6 {[%emt 0:01:54]} 8. Qxh6 {[%emt 0:00:06]} b5 {[%emt 0:03:04]} 9. O-O-O {[%emt 0:09:39]} b4 {[%emt 0:14:51]} 10. Nce2 {[%emt 0:00:43]} Qa5 {[%emt 0:00:23]} 11. Kb1 {[%emt 0:00:29]} Ba6 {[%emt 0:22:34]} 12. Nh3 {[%emt 0:08:26]} c5 {[%emt 0:08:13]} 13. dxc5 {[%emt 0:05:45]} dxc5 {[%emt 0:01:08]} 14. g4 {[%emt 0:14:10]} c4 {[%emt 0:08:26]} 15. g5 {[%emt 0:02:33]} Nh5 {[%emt 0:07:15]} 16. Nef4 {[%emt 0:01:09]} Nxf4 {[%emt 0:03:43]} 17. Nxf4 {[%emt 0:00:06]} e6 {[%emt 0:03:19]} 18. Bh3 {[%emt 0:22:50]} O-O-O {[%emt 0:05:24]} 19. Qg7 {[%emt 0:03:49]} Ne5 {[%emt 0:05:08]} 20. Rd5 {[%emt 0:01:50]} Rxd5 {[%emt 0:04:44]} 21. exd5 {[%emt 0:00:16]} Rd8 {[%emt 0:00:55]} 22. Qxe5 {[%emt 0:00:10]} Kb7 {[%emt 0:00:44]} 23. Qf6 {[%emt 0:00:56]} exd5 {[%emt 0:00:28]} 24. Qxf7+ {[%emt 0:00:15]} Kb8 {[%emt 0:00:15]} 25. Rd1 {[%emt 0:06:14]} Bb7 {[%emt 0:00:22]} 26. Be6 {[%emt 0:00:24]} b3 {[%emt 0:00:57]} 27. axb3 {[%emt 0:00:31]} cxb3 {[%emt 0:00:11]} 28. cxb3 {[%emt 0:00:04]} d4 {[%emt 0:00:10]} 29. Nd3 {[%emt 0:01:32]} Qxg5 {[%emt 0:00:17]} 30. Rc1 {[%emt 0:00:10]} Qe3 {[%emt 0:00:21]} 31. Qc7+ {[%emt 0:00:07]} 1-0

[Event "European Womens-ch 2025"]
[Site "Rhodes"]
[Date "2025.04.02"]
[Round "3.42"]
[White "Prado Acebo, Ines"]
[Black "Golsta, Madara"]
[Result "0-1"]
[Annotator "RC"]
[ECO "B76"]
[WhiteElo "2199"]
[BlackElo "1979"]
[PlyCount "64"]
[EventDate "2025.03.29"]
[EventType "swiss"]
[EventCountry "GRE"]
[SourceTitle "playchess.com"]
[Source "ChessBase"]
[SourceQuality "1"]
[TimeControl "40/5400+30:1800+30"]

1. e4 {[%emt 0:00:04]} c5 {[%emt 0:00:06]} 2. Nf3 {[%emt 0:00:22]} Nc6 {[%emt 0:00:34]} 3. d4 {[%emt 0:00:21]} cxd4 {[%emt 0:00:16]} 4. Nxd4 {[%emt 0:00:10]} g6 {[%emt 0:00:14]} 5. Nc3 {[%emt 0:00:11]} Bg7 {[%emt 0:00:20]} 6. Nb3 {[%emt 0:00:09]} Nf6 {[%emt 0:04:01]} 7. Be3 {[%emt 0:00:09]} O-O {[%emt 0:01:27]} 8. Qd2 {[%emt 0:00:10]} d6 {[%emt 0:02:08]} 9. f3 {[%emt 0:00:11]} Be6 {[%emt 0:13:09]} 10. O-O-O {[%emt 0:00:12]} Qc8 {[%emt 0:05:42]} 11. h4 {[%emt 0:09:44]} d5 {[%emt 0:30:33]} 12. h5 {[%emt 0:14:39]} dxe4 {[%emt 0:03:53]} 13. hxg6 {[%emt 0:00:40]} fxg6 {[%emt 0:02:40]} 14. Bh6 {[%emt 0:15:04]} Rd8 {[%emt 0:06:15]} 15. Qe3 {[%emt 0:06:28]} Rxd1+ {[%emt 0:00:20]} 16. Kxd1 {[%emt 0:00:27]} exf3 {[%emt 0:07:10]} 17. gxf3 {[%emt 0:01:58]} Bxh6 {[%emt 0:07:13]} 18. Qxh6 {[%emt 0:00:39]} Qf8 {[%emt 0:00:18]} 19. Qe3 {[%emt 0:00:50]} Bxb3 {[%emt 0:06:15]} 20. axb3 {[%emt 0:00:18]} Rd8+ {[%emt 0:02:30]} 21. Kc1 {[%emt 0:01:54]} Nh5 {[%emt 0:00:18]} 22. Bc4+ {[%emt 0:02:30]} Kh8 {[%emt 0:00:38]} 23. Nd5 {[%emt 0:44:50]} a6 {[%emt 0:00:19]} 24. b4 {[%emt 0:00:00]} Qg7 {[%emt 0:02:43]} 25. Rh4 {[%emt 0:00:00]} Ng3 {[%emt 0:01:47]} 26. Qb6 {[%emt 0:00:00]} Nf5 {[%emt 0:00:53]} 27. Re4 {[%emt 0:00:00]} Qh6+ {[%emt 0:00:20]} 28. Kb1 {[%emt 0:00:00]} Qh1+ {[%emt 0:00:06]} 29. Ka2 {[%emt 0:00:00]} Qxf3 {[%emt 0:00:11]} 30. Re6 {[%emt 0:00:00]} Rxd5 {[%emt 0:00:37]} 31. Qxb7 {[%emt 0:00:00]} Rd6 {[%emt 0:00:37]} 32. Rxd6 {[%emt 0:00:00]} Nxd6 {[%emt 0:00:14]} 0-1

[Event "European Womens-ch 2025"]
[Site "Rhodes"]
[Date "2025.04.02"]
[Round "3.43"]
[White "Golsta, Ramona"]
[Black "Karacsonyi, Kata"]
[Result "0-1"]
[Annotator "RC"]
[ECO "E81"]
[WhiteElo "1943"]
[BlackElo "2198"]
[PlyCount "68"]
[EventDate "2025.03.29"]
[EventType "swiss"]
[EventCountry "GRE"]
[SourceTitle "playchess.com"]
[Source "ChessBase"]
[SourceQuality "1"]
[TimeControl "40/5400+30:1800+30"]

1. d4 {[%emt 0:00:01]} Nf6 {[%emt 0:02:34]} 2. c4 {[%emt 0:00:08]} g6 {[%emt 0:00:12]} 3. Nc3 {[%emt 0:00:07]} Bg7 {[%emt 0:00:10]} 4. e4 {[%emt 0:00:11]} d6 {[%emt 0:00:07]} 5. f3 {[%emt 0:00:31]} O-O {[%emt 0:00:33]} 6. Be3 {[%emt 0:00:35]} c5 {[%emt 0:00:22]} 7. Bd3 {[%emt 0:09:00]} Ng4 {[%emt 0:06:10]} 8. fxg4 {[%emt 0:13:08]} cxd4 {[%emt 0:00:13]} 9. Bxd4 {[%emt 0:22:48]} Bxd4 {[%emt 0:00:44]} 10. h3 {[%emt 0:00:20]} Qb6 {[%emt 0:11:32]} 11. Nge2 {[%emt 0:13:10]} Qxb2 {[%emt 0:02:43]} 12. Qc1 {[%emt 0:02:33]} Bxc3+ {[%emt 0:17:59]} 13. Qxc3 {[%emt 0:00:17]} Qxc3+ {[%emt 0:00:17]} 14. Nxc3 {[%emt 0:00:05]} Nc6 {[%emt 0:00:39]} 15. Nd5 {[%emt 0:00:53]} Be6 {[%emt 0:01:28]} 16. Rb1 {[%emt 0:07:43]} Bxd5 {[%emt 0:07:50]} 17. cxd5 {[%emt 0:01:02]} Ne5 {[%emt 0:00:10]} 18. Kd2 {[%emt 0:00:22]} b6 {[%emt 0:01:05]} 19. Rhc1 {[%emt 0:00:55]} Rfc8 {[%emt 0:02:19]} 20. Ba6 {[%emt 0:00:59]} Rc5 {[%emt 0:04:31]} 21. Rxc5 {[%emt 0:03:07]} dxc5 {[%emt 0:00:07]} 22. a4 {[%emt 0:00:46]} h6 {[%emt 0:05:17]} 23. Ke3 {[%emt 0:06:27]} Kf8 {[%emt 0:06:01]} 24. Kf4 {[%emt 0:10:00]} f6 {[%emt 0:00:09]} 25. h4 {[%emt 0:03:08]} Nf7 {[%emt 0:02:59]} 26. Rh1 {[%emt 0:01:54]} Kg7 {[%emt 0:03:07]} 27. g3 {[%emt 0:01:06]} Rh8 {[%emt 0:05:46]} 28. a5 {[%emt 0:00:54]} Ne5 {[%emt 0:02:24]} 29. Be2 {[%emt 0:00:56]} c4 {[%emt 0:04:05]} 30. axb6 {[%emt 0:00:25]} axb6 {[%emt 0:00:05]} 31. Rb1 {[%emt 0:00:32]} Rc8 {[%emt 0:01:39]} 32. Bd1 {[%emt 0:00:23]} c3 {[%emt 0:00:40]} 33. Bc2 {[%emt 0:00:25]} Nc4 {[%emt 0:01:48]} 34. Rb3 {[%emt 0:00:09]} g5+ {[%emt 0:00:10]} 0-1

[Event "European Womens-ch 2025"]
[Site "Rhodes"]
[Date "2025.04.02"]
[Round "3.44"]
[White "Kosma, Maria"]
[Black "Bochnickova, Simona"]
[Result "1-0"]
[Annotator "RC"]
[ECO "C80"]
[WhiteElo "1826"]
[BlackElo "2167"]
[PlyCount "101"]
[EventDate "2025.03.29"]
[EventType "swiss"]
[EventCountry "GRE"]
[SourceTitle "playchess.com"]
[Source "ChessBase"]
[SourceQuality "1"]
[TimeControl "40/5400+30:1800+30"]

1. e4 {[%emt 0:00:03]} e5 {[%emt 0:00:04]} 2. Nf3 {[%emt 0:00:07]} Nc6 {[%emt 0:00:04]} 3. Bb5 {[%emt 0:00:09]} a6 {[%emt 0:00:11]} 4. Ba4 {[%emt 0:00:06]} Nf6 {[%emt 0:00:05]} 5. O-O {[%emt 0:00:49]} Nxe4 {[%emt 0:00:17]} 6. Re1 {[%emt 0:01:56]} Nc5 {[%emt 0:00:14]} 7. Bxc6 {[%emt 0:02:23]} dxc6 {[%emt 0:00:06]} 8. Nxe5 {[%emt 0:00:15]} Be7 {[%emt 0:00:10]} 9. d4 {[%emt 0:00:10]} Ne6 {[%emt 0:00:06]} 10. Be3 {[%emt 0:02:04]} O-O {[%emt 0:00:26]} 11. c4 {[%emt 0:04:51]} f6 {[%emt 0:02:19]} 12. Nd3 {[%emt 0:02:16]} Nxd4 {[%emt 0:06:54]} 13. Bxd4 {[%emt 0:06:29]} Qxd4 {[%emt 0:00:06]} 14. Rxe7 {[%emt 0:00:02]} Bf5 {[%emt 0:01:00]} 15. Nc3 {[%emt 0:15:45]} Bxd3 {[%emt 0:00:09]} 16. Rxc7 {[%emt 0:04:15]} Qb6 {[%emt 0:20:43]} 17. Rd7 {[%emt 0:05:35]} Bxc4 {[%emt 0:02:22]} 18. Qg4 {[%emt 0:00:11]} Bf7 {[%emt 0:00:03]} 19. Na4 {[%emt 0:07:21]} Qa5 {[%emt 0:09:47]} 20. Rad1 {[%emt 0:10:11]} Rad8 {[%emt 0:06:36]} 21. b4 {[%emt 0:06:10]} Qxa4 {[%emt 0:00:03]} 22. Rxd8 {[%emt 0:00:08]} c5 {[%emt 0:08:19]} 23. Rxf8+ {[%emt 0:00:21]} Kxf8 {[%emt 0:00:05]} 24. Qc8+ {[%emt 0:00:02]} Be8 {[%emt 0:00:41]} 25. Qxc5+ {[%emt 0:00:08]} Kf7 {[%emt 0:00:05]} 26. Qd5+ {[%emt 0:00:22]} Kg6 {[%emt 0:02:06]} 27. Qe4+ {[%emt 0:02:42]} Kf7 {[%emt 0:01:48]} 28. Qxb7+ {[%emt 0:00:25]} Kg6 {[%emt 0:00:32]} 29. Rd3 {[%emt 0:00:21]} Bc6 {[%emt 0:10:25]} 30. Rg3+ {[%emt 0:00:31]} Kf5 {[%emt 0:00:07]} 31. Qc8+ {[%emt 0:00:38]} Ke5 {[%emt 0:01:15]} 32. Qc7+ {[%emt 0:01:13]} Kd5 {[%emt 0:03:11]} 33. Qd8+ {[%emt 0:01:52]} Ke6 {[%emt 0:04:00]} 34. Re3+ {[%emt 0:01:22]} Kf5 {[%emt 0:00:04]} 35. Qd3+ {[%emt 0:00:54]} Kg5 {[%emt 0:00:15]} 36. Rg3+ {[%emt 0:03:47]} Kh6 {[%emt 0:01:21]} 37. Rh3+ {[%emt 0:00:22]} Kg5 {[%emt 0:00:06]} 38. Rxh7 {[%emt 0:00:25]} Qxb4 {[%emt 0:01:49]} 39. h4+ {[%emt 0:00:31]} Kf4 {[%emt 0:01:00]} 40. g3+ {[%emt 0:00:00]} Ke5 {[%emt 0:00:00]} 41. f4+ {[%emt 0:04:53]} Ke6 {[%emt 0:02:18]} 42. Qb3+ {[%emt 0:00:02]} Qxb3 {[%emt 0:00:10]} 43. axb3 {[%emt 0:00:01]} Kf7 {[%emt 0:00:09]} 44. Rh5 {[%emt 0:00:27]} Ke6 {[%emt 0:00:32]} 45. Rc5 {[%emt 0:00:09]} Bb5 {[%emt 0:09:47]} 46. g4 {[%emt 0:00:25]} Kd6 {[%emt 0:01:12]} 47. b4 {[%emt 0:00:27]} Bd3 {[%emt 0:03:12]} 48. Kf2 {[%emt 0:01:12]} Bb5 {[%emt 0:01:52]} 49. h5 {[%emt 0:00:55]} Be8 {[%emt 0:00:26]} 50. g5 {[%emt 0:00:45]} Ke6 {[%emt 0:00:52]} 51. h6 {[%emt 0:01:25]} 1-0